Cogmind - Beta 14 @@@ ROGUE MODE // 2024.10.25 @ 19:50:37 Player: Udabudha Result: Destroyed by L-31 Rogue with Katana Performance ------------- Evolutions (1) 500 Regions Visited (4) 800 Robots Destroyed (24) 120 Value Destroyed (444) 444 Prototype IDs (0) 0 Alien Tech Used (0) 0 Bonus (60) 60 TOTAL SCORE: 1924 Bonus ------- Follower Combat Kills 60 Cogmind --------- Core Integrity 0/400 Matter 240/300 Energy 47/100 System Corruption 2% Temperature Cool (0) Movement Core (100) Ox1 Location -9/Storage Parts ------- > --- POWER (1) -------- (None) > --- PROPULSION (3) --- (None) > --- UTILITY (3) ------ Small Storage Unit > --- WEAPON (2) ------- (None) > --- INVENTORY (8) ---- Wheel ECM Suite Peak State ------------ > --- POWER ------------ Ion Engine > --- PROPULSION ------- Carbon-fiber Leg Carbon-fiber Leg > --- UTILITY ---------- Improved Heat Sink Small Storage Unit Light Armor Plating > --- WEAPON ----------- Medium Laser Assault Rifle > --- INVENTORY -------- Light Ion Engine Wheel Flight Unit Flight Unit Flight Unit Heavy Particle Cannon Mining Laser [Rating: 14] Favorites ----------- Power Ion Engine Engine Ion Engine Propulsion Aluminum Leg Leg Aluminum Leg Flight Unit Flight Unit Utility Small Storage Unit Device Improved Heat Sink Storage Small Storage Unit Protection Light Armor Plating Weapon Medium Laser Energy Gun Medium Laser Energy Cannon Heavy Particle Cannon Ballistic Gun Assault Rifle Launcher EMP Blaster Special Weapon Mining Laser Build | -11 -10 -10 -9 -9 ------- Run | Yrd Mat Min Mat Sto Slots Evolved 2 | . . . 2 . Power . | . . . . . Propulsion 1 | . . . 1 . Utility 1 | . . . 1 . Weapon . | . . . . . Parts Attached 23 | 6 . 3 4 10 Power 2 | 1 . . . 1 Engine 2 | 1 . . . 1 Core . | . . . . . Reactor . | . . . . . Propulsion 9 | 2 . 2 3 2 Treads . | . . . . . Leg 6 | 2 . 2 . 2 Wheel . | . . . . . Hover . | . . . . . Flight 3 | . . . 3 . Utility 4 | 1 . 1 1 1 Device 1 | . . . 1 . Storage 1 | 1 . . . . Processor . | . . . . . Hackware . | . . . . . Protection 2 | . . 1 . 1 Artifact . | . . . . . Weapon 8 | 2 . . . 6 Energy Gun 2 | 1 . . . 1 Energy Cannon 1 | . . . . 1 Ballistic Gun 1 | 1 . . . . Ballistic Cannon . | . . . . . Launcher 2 | . . . . 2 Special Weapon 2 | . . . . 2 Impact Weapon . | . . . . . Slashing Weapon . | . . . . . Piercing Weapon . | . . . . . Special Melee Weapon . | . . . . . Unidentified Prototypes . | . . . . . Parts Lost 12 | . . . 1 11 Power 2 | . . . . 2 Propulsion 3 | . . . 1 2 Utility 3 | . . . . 3 Weapon 4 | . . . . 4 Highest Loss Streak 8 | . . . 1 8 To Critical Strikes . | . . . . . Average Slot Usage (%) 86 | . 85 99 100 67 Engine 12 | . 14 14 11 9 Leg 19 | . 28 27 . 11 Flight 4 | . . . 33 3 Device 4 | . . . 11 9 Storage 12 | . 14 14 11 11 Protection 8 | . . 13 11 6 Energy Gun 11 | . 14 14 11 8 Ballistic Gun 11 | . 14 14 11 6 Peak Build Rating 14 | 6 6 12 14 14 Average Rating 9 | 4 6 9 12 10 On Entrance 7 | . 6 6 12 11 Naked Turns . | . . . . . Heaviest Build 22 | 14 14 17 18 22 Greatest Support 30 | 20 20 30 12 30 Greatest Overweight (x) 4 | 1 . . 2 4 Average Overweight (x) . | . . . 1 . Largest Inventory Capacity 8 | 8 8 8 8 8 Average Capacity 7 | 6 8 8 8 8 Most Carried 8 | 6 8 8 8 8 Average Carried 6 | 4 7 7 6 5 Final Capacity 8 | 8 8 8 8 8 Final Carried 8 | 6 8 8 7 2 Class Distribution -------------------- 91% | Mutant 8% | Scavenger-Mutant Dominant Class ---------------- Mutant | -10/Materials Mutant | -10/Mines Scavenger-Mutant | -9/Materials Mutant | -9/Storage Resources | -11 -10 -10 -9 -9 ----------- Run | Yrd Mat Min Mat Sto Matter Collected 464 | 119 55 196 48 46 Remotely . | . . . . . Salvage Created 585 | . 55 158 48 324 Parts 50 | . 7 21 3 19 Haulers Intercepted . | . . . . . Recyclers Shooed . | . . . . . Parts Field Recycled . | . . . . . Retrieved Matter . | . . . . . Parts Self-Destructed . | . . . . . Prevented . | . . . . . Kills | -11 -10 -10 -9 -9 ------- Run | Yrd Mat Min Mat Sto Combat Hostiles Destroyed 24 | . 3 11 1 9 Guns 19 | . 3 11 1 4 Cannons 1 | . . . . 1 AOE 4 | . . . . 4 Classes Destroyed 5 | . 1 . 1 3 Swarmer 17 | . 3 11 . 3 Grunt 4 | . . . 1 3 Brawler 1 | . . . . 1 Duelist 1 | . . . . 1 Sentry 1 | . . . . 1 Best Kill Streak 5 | . 3 3 1 5 Combat Bots Only 5 | . 3 3 1 5 Max Kills in Single Turn 3 | . 1 1 1 3 Gunslinging 1 | . . . . 1 Exploded 3 | . . . . 3 Melee . | . . . . . Uniques/NPCs Destroyed . | . . . . . Combat | -11 -10 -10 -9 -9 -------- Run | Yrd Mat Min Mat Sto Hostile Shots Fired 142 | . 7 52 6 77 Missed 42 | . 3 9 1 29 Damage Taken 1521 | . 34 373 66 1048 Core 531 | . 7 102 31 391 Absorbed by Shields . | . . . . . Core Remaining (%) 78 | 100 . 56 . . Volleys Fired 56 | . 5 27 2 22 Largest 2 | . 2 2 2 2 Hottest 125 | . 70 70 70 125 Shots Fired 99 | . 7 54 3 35 Gun 85 | . 7 54 3 21 Cannon 4 | . . . . 4 Launcher 5 | . . . . 5 Special 5 | . . . . 5 Kinetic 43 | . 5 27 1 10 Thermal 51 | . 2 27 2 20 Explosive . | . . . . . Electromagnetic 5 | . . . . 5 Robot Hit Streak 6 | . 6 4 1 6 Robot Miss Streak 5 | . 1 5 2 2 Penetration Max . | . . . . . Secondary Targets 6 | . 2 2 . 2 Max Gunslinging Chain 1 | . 1 1 . 1 Shots Hit Robots 52 | . 6 24 1 21 Core Hits 33 | . 3 11 1 18 Critical Kills . | . . . . . Critical Parts Destroyed . | . . . . . Critical Strikes 2 | . . 2 . . Burn 2 | . . 2 . . Melee Attacks . | . . . . . Impact . | . . . . . Slashing . | . . . . . Piercing . | . . . . . Sneak Attacks . | . . . . . Combat Hostiles . | . . . . . Follow-up Attacks . | . . . . . Damage Inflicted 1153 | . 75 323 15 740 Guns 593 | . 75 323 15 180 Cannons 50 | . . . . 50 Explosions 486 | . . . . 486 Melee . | . . . . . Ramming . | . . . . . Kinetic 330 | . 50 172 15 93 Thermal 429 | . 25 151 . 253 Explosive . | . . . . . Electromagnetic 394 | . . . . 394 Impact . | . . . . . Slashing . | . . . . . Piercing . | . . . . . Highest Corruption 2 | . . . . 2 Average Corruption 1 | . . . . 1 Corruption Purged . | . . . . . Corruption Blocked . | . . . . . Effects 2 | . . . . 2 Message Errors 1 | . . . . 1 Data Loss (minor) 1 | . . . . 1 Overload Shots . | . . . . . Overflow Damage . | . . . . . Projectiles . | . . . . . Explosions . | . . . . . Melee . | . . . . . Knockbacks . | . . . . . Impact . | . . . . . Kinetic . | . . . . . Secondary . | . . . . . Self-Inflicted Damage 76 | . . . . 76 Shots 5 | . . . . 5 Rammed . | . . . . . Targets Rammed . | . . . . . Kicked . | . . . . . Crushed . | . . . . . Highest Temperature 300 | . 18 300 . 139 Average Temperature 113 | . 10 125 . 73 Received Heat Transfer 198 | . . . 30 168 Effects 4 | . . 4 . . Energy Bleed 2 | . . 2 . . Interference 2 | . . 2 . . Siege Activations . | . . . . . Robots Corrupted . | . . . . . Combat Hostiles . | . . . . . Parts Fried 2 | . . . . 2 Impact Corruptions . | . . . . . Robots Melted . | . . . . . Combat Hostiles . | . . . . . Parts Melted 1 | . . 1 . . Heat Transferred 1199 | . 74 592 . 533 Parts Sabotaged . | . . . . . Parts Stolen . | . . . . . Parts Stripped . | . . . . . Power Chain Reactions 1 | . . . . 1 Alert | -11 -10 -10 -9 -9 ------- Run | Yrd Mat Min Mat Sto Peak Influence 306 | . 83 306 171 268 Initial 118 | . . 31 118 67 Average 110 | . 57 114 135 151 Maximum Alert Level 1 | . . 1 . 1 Low Security (%) 81 | 100 100 83 100 63 Level 1 18 | . . 16 . 36 Level 2 . | . . . . . Level 3 . | . . . . . Level 4 . | . . . . . Level 5 . | . . . . . High Security . | . . . . . Max Security . | . . . . . Squads Dispatched 6 | . 1 . 2 3 Investigation 4 | . 1 . 2 1 Extermination . | . . . . . Reinforcement . | . . . . . Assault 2 | . . . . 2 Garrison . | . . . . . Intercept . | . . . . . Searches Triggered . | . . . . . Construction Impeded . | . . . . . Haulers Reinforced . | . . . . . Active Scanning Responses . | . . . . . Cargo Convoy Interrupts . | . . . . . Stealth | -11 -10 -10 -9 -9 --------- Run | Yrd Mat Min Mat Sto Distress Signals . | . . . . . Communications Jammed . | . . . . . Distress Signals . | . . . . . Times Spotted 39 | . 4 14 3 18 Peak Tracking Total 9 | . 2 4 2 9 Tactical Retreats . | . . . . . Traps | -11 -10 -10 -9 -9 ------- Run | Yrd Mat Min Mat Sto Traps Triggered 1 | . . 1 . . Indirectly . | . . . . . Trap Hack Attempts . | . . . . . Triggered . | . . . . . Disarmed . | . . . . . Reprogrammed 6 | . . . 6 . Reused . | . . . . . Traps Extracted . | . . . . . Installed . | . . . . . Triggered . | . . . . . Machines | -11 -10 -10 -9 -9 ---------- Run | Yrd Mat Min Mat Sto Machines Disabled 1 | . . . . 1 Max in Single Turn 1 | . . . . 1 Machines Repaired . | . . . . . Machines Dismantled . | . . . . . Machines Sabotaged . | . . . . . Overloaded Fab Kills . | . . . . . Hacking | -11 -10 -10 -9 -9 --------- Run | Yrd Mat Min Mat Sto Machines Accessed 7 | . 2 1 2 2 Terminals 6 | . 2 . 2 2 Fabricators . | . . . . . Repair Stations . | . . . . . Recycling Units . | . . . . . Scanalyzers . | . . . . . Garrison Access . | . . . . . Total Hacks 20 | . 5 1 8 6 Successful 8 | . 2 1 3 2 Failed 12 | . 3 . 5 4 Catastrophic 4 | . 2 . 2 . Database Lockouts . | . . . . . Manual 13 | . 4 . 5 4 Terminals 19 | . 5 . 8 6 Fabricators . | . . . . . Repair Stations . | . . . . . Recycling Units . | . . . . . Scanalyzers . | . . . . . Garrison Access . | . . . . . Terminal Hacks 8 | . 2 1 3 2 Record 1 | . . . . 1 Open Door 1 | . . 1 . . Branch Access Points 2 | . 1 . . 1 Emergency Access Points 1 | . . . 1 . Locate Traps 1 | . . . 1 . Reprogram Traps 1 | . . . 1 . Zone Layout 1 | . 1 . . . Fabricator Hacks . | . . . . . Repair Station Hacks . | . . . . . Recycling Unit Hacks . | . . . . . Scanalyzer . | . . . . . Garrison Access Hacks . | . . . . . Unauthorized Hacks . | . . . . . Terminals . | . . . . . Fabricators . | . . . . . Repair Stations . | . . . . . Recycling Units . | . . . . . Scanalyzers . | . . . . . Garrison Access . | . . . . . Data Cores Recovered . | . . . . . Used . | . . . . . Hacking Detections 6 | . 2 . 2 2 Full Trace Events 5 | . 2 . 2 1 Feedback Events . | . . . . . Feedback Blocked . | . . . . . Robot Schematics Acquired . | . . . . . Robots Built . | . . . . . Authchips . | . . . . . Time . | . . . . . Total Robot Build Rating . | . . . . . Part Schematics Acquired . | . . . . . Parts Built . | . . . . . Authchips . | . . . . . Time . | . . . . . Total Part Build Rating . | . . . . . Parts Repaired . | . . . . . Time . | . . . . . Parts Recycled . | . . . . . Recycled Matter . | . . . . . Retrieved Matter . | . . . . . Retrieved Components . | . . . . . Parts Scanalyzed . | . . . . . Part Schematics Acquired . | . . . . . Parts Damaged . | . . . . . Bothacking | -11 -10 -10 -9 -9 ------------ Run | Yrd Mat Min Mat Sto Used RIF Installer . | . . . . . Robots Hacked . | . . . . . Non-combat . | . . . . . Combat . | . . . . . Robot Hacks Applied . | . . . . . Relay Couplers Released . | . . . . . Fabnet Peak Effective % . | . . . . . Robots Rewired . | . . . . . Allies Hacked . | . . . . . Hacks Repelled . | . . . . . Allies | -11 -10 -10 -9 -9 -------- Run | Yrd Mat Min Mat Sto Total Allies 2 | . . . . 2 Largest Group 2 | . . . . 2 Highest-Rated Group 62 | . . . . 62 Highest-Rated Ally 31 | . . . . 31 Total Orders . | . . . . . Ally Attacks 17 | . . . . 17 Total Damage 295 | . . . . 295 Kills 2 | . . . . 2 Allies Corrupted . | . . . . . Allies Melted . | . . . . . Intel | -11 -10 -10 -9 -9 ------- Run | Yrd Mat Min Mat Sto Robot Analysis Total . | . . . . . Derelict Logs Recovered . | . . . . . Drone Launches . | . . . . . Drone Recoveries . | . . . . . Exploration | -11 -10 -10 -9 -9 ------------- Run | Yrd Mat Min Mat Sto Turns Passed 861 | 76 110 327 70 278 Spaces Moved 505 | 55 78 197 52 123 Core 14 | 13 . . . 1 Treads . | . . . . . Legs 416 | 42 78 197 . 99 Wheels . | . . . . . Hover . | . . . . . Flight 75 | . . . 52 23 Fastest Speed 50 | 50 120 120 114 120 Average Speed 122 | 107 120 120 117 136 Slowest Speed 250 | 120 120 120 197 250 Overloaded Moves . | . . . . . Propulsion Burnouts . | . . . . . Robots Hopped . | . . . . . Cave-ins Triggered . | . . . . . Exploration Rate (%) 21 | 4 21 43 10 31 Regions Visited 4 Branch Regions 2 Pre-discovered Areas . | . . . . . Known Exits Taken 1 | . 1 . . . Unknown Exits Taken 3 | 1 . 1 1 . Scrap Searched 2 | . . 2 . . Spaces Dug . | . . . . . Terrain Destroyed 8 | . . . . 8 Melee . | . . . . . Projectile 2 | . . . . 2 AOE 6 | . . . . 6 Terrain Rammed . | . . . . . Walls Destroyed . | . . . . . Machines Disabled . | . . . . . Actions | -11 -10 -10 -9 -9 --------- Run | Yrd Mat Min Mat Sto Total 643 | 71 88 234 60 190 Wait 28 | . . . . 28 Move 501 | 54 77 196 51 123 Hop . | . . . . . Pick Up 22 | 11 4 3 1 3 Fast Attach 4 | 1 . 3 . . Attach 19 | 5 . . 4 10 Detach 4 | . . . 2 2 Swap . | . . . . . Drop 9 | . 2 5 . 2 Fire 56 | . 5 27 2 22 Melee . | . . . . . Ram . | . . . . . Kick . | . . . . . Crush . | . . . . . Escape Stasis . | . . . . . Rewire . | . . . . . Trap . | . . . . . Miscellaneous . | . . . . . Route ------- -11/Scrapyard -10/Materials -10/Mines -9/Materials -9/Storage (discovered 1 exit: Rec) History --------- Turn | Location | Event 12 | -11/Scrapyard | Discovered new exit (range 15) 77 | -11/Scrapyard | Entered Materials 153 | -10/Materials | Identified exit to Mines 187 | -10/Materials | Entered Mines 226 | -10/Mines | Met a Derelict who couldn't figure out how to use a Trap Extractor 315 | -10/Mines | Build established: Mutant 457 | -10/Mines | Discovered new exit (range 3) 514 | -10/Mines | Entered Materials 514 | -9/Materials | Evolved 2 slots: Propulsion x1, Utility x1 570 | -9/Materials | Discovered new exit (range 3) 584 | -9/Materials | Entered Storage 666 | -9/Storage | Identified exit to Recycling 745 | -9/Storage | Met a pair of Derelict thieves 774 | -9/Storage | Lost 3 parts (1n1u1w) 833 | -9/Storage | Core integrity fell below 50% 853 | -9/Storage | Core integrity fell below 20% 862 | -9/Storage | Destroyed by L-31 Rogue with Katana Last Messages --------------- R-06 Scavenger collects Corrupted Prototype Energy Gun. U-05 Engineer builds a Wall. G-47 Trooper misfires. U-05 Engineer lays Concrete. R-06 Scavenger collects Heat Sink. U-05 Engineer lays Concrete. G-47 Trooper IFF system glitched. Component Storage disabled. U-05 Engineer lays Concrete. R-06 Scavenger collects Ion Engine. U-05 Engineer builds a Wall. Mining Laser destroyed. U-05 Engineer destroyed. R-06 Scavenger collects Terrain Scan Processor. U-05 Engineer lays Concrete. G,LTH7MNKWFBJ,GVC&IEY1FX3K U-05 Engineer builds a Wall. G-47 Trooper IFF system glitched. U-05 Engineer destroyed. Map ----- +----------------------------------------------------+ | | | | | | | | | | | | | | | | | | | | | | | | | | | | | ??????????????????????????????????????? | | ??????????????????????????????????????? | | ??????????????????????????????????????? | | ??????????????????????????????????????? | | ##????????????????????????????????????? | | #????????????????????????????????????? | | #######??????????????????????????????? | | ???????????????????????? | | ###+##+###??????????????>?????????????? | | ??????? ??????????????????????????????? | | ?????? ????########??#""""#??????????? | | ?????? ????#] ] ]#??##=@##??????????? | | ?????? ?????# ] ]]#??#]l=%#??????????? | | ?????? ?????# #??##%%=#??????????? | | ?????? ?????# #??##g%=#??????????? | | ?????? ?????###"="##??##!%##??????????? | | ????"" ??????#T ===#??## #???????????? | | ???? ??????## =%#??##% ##??????????? | | #####/##??########/####% r #??????????? | | # ####"T"#### %#??????????? | | " # # # #??????????? | | " / # =# #??????????? | | " # # """"" # #??????????? | | + / """"" # %#??????????? | | " # # """"" + ^ % #????? | | " # # # ^ ^ ^ #????? | | " # ################^ """" #????? | | # #??????????????# """"" ?????? | | #### #??????????????# """"" #????? | | #??# #??????????????+ ?????#????? | | #??# #??????????????? ?????????? | | ???# #??????????????? #####?????????? | | ???# #??????????????? ??????????????? | | ???+ #??????????????? ??????????????? | | ???# #???????????????#??????????????? | | ???# #??????????????????????????????? | +----------------------------------------------------+ Best States ------------- Heat Dissipation 42 Energy Generation 10 Energy Capacity 250 Matter Stores 300 Matter Capacity 300 Sight Range 16 Terrain Scan Density 10 Armor Coverage 150 Evasion (%) 55 Item Schematics ----------------- None Robot Schematics ------------------ None Fabricated ------------ Nothing Alien Tech Used ----------------- None Achievements -------------- None Challenges ------------ None Game ------ Seed AntimissileMetafiberComputer Manual? 0 Play Time 00:16:14 Cumulative 6.7 hours Start 2024.10.25 @ 19:32:56 End 2024.10.25 @ 19:50:37 Sessions 1 Manual Loads 0 Difficulty Rogue Special Mode None Game No. 18 Rogue 15 Adventurer 1 Explorer 2 Win Type - Total 0 Types 0/0/0/0/0/0/0/0/0 Lore% 9 Gallery% 16 Achievement% 16 Wizard Run 0 Options --------- Layout 2 ASCII 0 Keyboard 0 Movement Mouse Keybinds 0 Fullscreen 1 Font 48/Smallcaps Map View 50x44 Zoom Use 0% Tactical HUD 0 Map Filters NONE Filters NONE Steam 1 RUN: 0705bce1-b799-4731-b87d-789decfc57bf